fUST/lending_fUST_20250628
["ID","MTS","AMOUNT","RATE_DAILY","PERIOD"]
[368286262,1751092245006,-3913.47,0.00019726,2]
[368286263,1751092245018,-1917.93,0.00019726,2]
[368286264,1751092245027,-460.0,0.00019726,2]
[368286265,1751092245036,-460.0,0.00019726,2]
[368286266,1751092245045,-460.0,0.00019726,2]
[368286267,1751092245054,-460.0,0.00019726,2]
[368286268,1751092245064,-448.43126466,0.00019726,2]
[368286269,1751092245073,-486.94,0.00019726,2]
[368286270,1751092245082,-387.40038183,0.00019726,2]
[368286271,1751092245092,-460.0,0.00019726,2]
[368286272,1751092245101,-460.0,0.00019726,2]
[368286273,1751092245110,-528.85670793,0.00019726,2]
[368286274,1751092245119,-1763.75,0.00019726,2]
[368286275,1751092245128,-1417.63,0.00019726,2]
[368286276,1751092245138,-1517.54,0.00019726,2]
[368286277,1751092245147,-287.1658826,0.00019733,2]
[368286278,1751092245156,-500.0,0.00019733,2]
[368286279,1751092245165,-487.1023781,0.00019733,2]
[368286280,1751092245175,-500.0,0.00019734,2]
[368286281,1751092245184,-509.68531918,0.00019741,2]
[368286282,1751092245193,-7958.9386783,0.000199,2]
[368286283,1751092245202,-1597.5425311,0.00019989,2]
[368286284,1751092245211,-460.0,0.0002,2]
[368286285,1751092245220,-460.0,0.0002,2]
[368286286,1751092245229,-460.0,0.0002,2]
[368286287,1751092245239,-460.0,0.0002,2]
[368286288,1751092245248,-500.0,0.0002,2]
[368286289,1751092245257,-460.0,0.0002,2]
[368286290,1751092245270,-6894.0,0.0002,2]
[368286291,1751092245279,-544.66,0.0002,2]
[368286292,1751092245289,-460.0,0.0002,2]
[368286293,1751092245298,-460.0,0.0002,2]
[368286294,1751092245308,-460.0,0.0002,2]
[368286295,1751092245317,-518.60071939,0.0002,2]
[368286296,1751092245326,-783.34,0.0002,2]
[368286297,1751092245336,-460.0,0.0002,2]
[368286298,1751092245346,-488.3553978,0.0002,2]
[368286299,1751092245355,-507.71095268,0.0002,2]
[368286300,1751092245365,-460.0,0.0002,2]
[368286301,1751092245374,-460.0,0.0002,2]
[368286302,1751092245383,-460.0,0.0002,2]
[368286303,1751092245392,-460.0,0.0002,2]
[368286304,1751092245402,-504.45535336,0.0002,2]
[368286305,1751092245411,-460.0,0.0002,2]
[368286306,1751092245421,-460.0,0.0002,2]
[368286307,1751092245430,-460.0,0.0002,2]
[368286308,1751092245440,-477.7078451,0.0002,2]
[368286309,1751092245449,-460.0,0.0002,2]
[368286310,1751092245459,-855.13,0.0002,2]
[368286311,1751092245468,-1621.43,0.0002,2]
[368286312,1751092245478,-460.0,0.0002,2]
[368286313,1751092245487,-460.0,0.0002,2]
[368286314,1751092245497,-963.72,0.0002,2]
[368286315,1751092245506,-460.0,0.0002,2]
[368286316,1751092245519,-460.0,0.0002,2]
[368286317,1751092245529,-460.0,0.0002,2]
[368286318,1751092245538,-460.0,0.0002,2]
[368286319,1751092245547,-393.04653521,0.0002,2]
[368286320,1751092245557,-460.0,0.0002,2]
[368286321,1751092245566,-460.0,0.0002,2]
[368286322,1751092245575,-460.0,0.0002,2]
[368286323,1751092245584,-460.0,0.0002,2]
[368286324,1751092245594,-2847.84,0.0002,2]
[368286325,1751092245603,-460.0,0.0002,2]
[368286326,1751092245612,-762.68,0.0002,2]
[368286327,1751092245622,-688.06,0.0002,2]
[368286328,1751092245631,-637.58,0.0002,2]
[368286329,1751092245641,-460.0,0.0002,2]
[368286330,1751092245650,-2645.71,0.0002,2]
[368286331,1751092245659,-460.0,0.0002,2]
[368286332,1751092245669,-160.0,0.0002,3]
[368286333,1751092245678,-160.0,0.0002,3]
[368286334,1751092245688,-460.0,0.0002,2]
[368286335,1751092245697,-460.0,0.0002,2]
[368286336,1751092245706,-460.0,0.0002,2]
[368286337,1751092245715,-421.8078106,0.0002,2]
[368286338,1751092245725,-749.34,0.0002,2]
[368286339,1751092245734,-460.0,0.0002,2]
[368286340,1751092245743,-2283.61,0.0002,2]
[368286341,1751092245752,-460.0,0.0002,2]
[368286342,1751092245876,-460.0,0.0002,2]
[368286343,1751092245887,-487.76071805,0.0002,2]
[368286344,1751092245896,-460.0,0.0002,2]
[368286345,1751092245906,-460.0,0.0002,2]
[368286346,1751092245915,-1062.61,0.0002,2]
[368286347,1751092245925,-460.0,0.0002,2]
[368286348,1751092245934,-460.0,0.0002,2]
[368286349,1751092245943,-460.0,0.0002,2]
[368286350,1751092245953,-460.0,0.0002,2]
[368286351,1751092245962,-460.0,0.0002,2]
[368286352,1751092245971,-460.0,0.0002,2]
[368286353,1751092245980,-503.12,0.0002,2]
[368286354,1751092245990,-460.0,0.0002,2]
[368286355,1751092245998,-460.0,0.0002,2]
[368286356,1751092246008,-546.11,0.0002,2]
[368286357,1751092246019,-460.0,0.0002,2]
[368286358,1751092246028,-2827.27,0.0002,2]
[368286359,1751092246038,-460.0,0.0002,2]
[368286360,1751092246047,-460.0,0.0002,2]
[368286361,1751092246057,-460.0,0.0002,2]
[368286362,1751092246067,-2063.9,0.0002,2]
[368286363,1751092246078,-597.96,0.0002,2]
[368286364,1751092246087,-1025.68,0.0002,2]
[368286365,1751092246096,-655.26651717,0.0002,2]
[368286366,1751092246106,-460.0,0.0002,2]
[368286367,1751092246115,-460.0,0.0002,2]
[368286368,1751092246124,-460.0,0.0002,2]
[368286369,1751092246134,-460.0,0.0002,2]
[368286370,1751092246143,-3087.12,0.0002,2]
[368286371,1751092246152,-758.94,0.0002,2]
[368286372,1751092246161,-18803.49168301,0.0002,2]
[368286373,1751092246170,-460.0,0.0002,2]
[368286374,1751092246179,-460.0,0.0002,2]
[368286375,1751092246188,-460.0,0.0002,2]
[368286376,1751092246197,-460.0,0.0002,2]
[368286377,1751092246206,-1845.16,0.0002,2]
[368286378,1751092246215,-1876.63,0.0002,2]
[368286379,1751092246224,-460.0,0.0002,2]
[368286380,1751092246234,-204.17581799,0.0002,2]
[368286381,1751092246243,-460.0,0.0002,2]
[368286382,1751092246252,-3961.88,0.0002,2]
[368286383,1751092246261,-460.0,0.0002,2]
[368286384,1751092246272,-738.64,0.0002,2]
[368286385,1751092246282,-1261.08,0.0002,2]
[368286386,1751092246291,-460.0,0.0002,2]
[368286387,1751092246302,-460.0,0.0002,2]
[368286388,1751092246311,-1780.21,0.0002,2]
[368286389,1751092246321,-460.0,0.0002,2]
[368286390,1751092246330,-460.0,0.0002,2]
[368286391,1751092246340,-830.04,0.0002,2]
[368286392,1751092246349,-460.0,0.0002,2]
[368286393,1751092246359,-493.72,0.0002,2]
[368286395,1751092246368,-460.0,0.0002,2]
[368286396,1751092246378,-3913.47,0.0002,2]
[368286397,1751092246387,-1917.93,0.0002,2]
[368286398,1751092246396,-460.0,0.0002,2]
[368286399,1751092246405,-460.0,0.0002,2]
[368286400,1751092246415,-460.0,0.0002,2]
[368286401,1751092246424,-460.0,0.0002,2]
[368286402,1751092246433,-486.94,0.0002,2]
[368286403,1751092246443,-460.0,0.0002,2]
[368286404,1751092246452,-460.0,0.0002,2]
[368286405,1751092246461,-1763.75,0.0002,2]
[368286406,1751092246470,-1417.63,0.0002,2]
[368286407,1751092246479,-1517.54,0.0002,2]
[368286408,1751092246488,-300.0,0.00020111,2]
[368286409,1751092246497,-7958.93867809,0.00020141,2]
[368286410,1751092246508,-1000.0,0.00020148,2]
[368286411,1751092246518,-356.446888,0.00020187,2]
[368286412,1751092246527,-1000.0,0.00020245,2]
[368286413,1751092246537,-501.169435,0.00020245,2]
[368286414,1751092246547,-1000.0,0.00020267,2]
[368286415,1751092246556,-460.0,0.00020273,2]
[368286416,1751092246566,-460.0,0.00020273,2]
[368286417,1751092246575,-346.95057223,0.00020273,2]
[368286418,1751092246585,-460.0,0.00020273,2]
[368286419,1751092246594,-460.0,0.00020273,2]
[368286420,1751092246603,-544.66,0.00020273,2]
[368286421,1751092246613,-460.0,0.00020273,2]
[368286422,1751092246622,-460.0,0.00020273,2]
[368286423,1751092246631,-460.0,0.00020273,2]
[368286424,1751092246641,-783.34,0.00020273,2]
[368286425,1751092246651,-460.0,0.00020273,2]
[368286426,1751092246660,-460.0,0.00020273,2]
[368286427,1751092246670,-280.82,0.00020273,2]
[368286428,1751092246679,-460.0,0.00020273,2]
[368286429,1751092246689,-460.0,0.00020273,2]
[368286430,1751092246699,-534.35,0.00020273,2]
[368286431,1751092246709,-460.0,0.00020273,2]
[368286432,1751092246719,-551.86494749,0.00020273,2]
[368286433,1751092246728,-460.0,0.00020273,2]
[368286435,1751092246737,-855.13,0.00020273,2]
[368286436,1751092246747,-1621.43,0.00020273,2]
[368286437,1751092246756,-460.0,0.00020273,2]
[368286438,1751092246769,-460.0,0.00020273,2]
[368286439,1751092246780,-963.72,0.00020273,2]
[368286440,1751092246789,-460.0,0.00020273,2]
[368286441,1751092246799,-460.0,0.00020273,2]
[368286442,1751092246809,-460.0,0.00020273,2]
[368286443,1751092246819,-559.1039196,0.00020273,2]
[368286444,1751092246828,-460.0,0.00020273,2]
[368286445,1751092246840,-460.0,0.00020273,2]
[368286446,1751092246851,-460.0,0.00020273,2]
[368286447,1751092246862,-460.0,0.00020273,2]
[368286448,1751092246872,-2847.84,0.00020273,2]
[368286449,1751092246881,-460.0,0.00020273,2]
[368286450,1751092246891,-762.68,0.00020273,2]
[368286451,1751092246900,-688.06,0.00020273,2]
[368286452,1751092246909,-637.58,0.00020273,2]
[368286453,1751092246918,-460.0,0.00020273,2]
[368286454,1751092246928,-2645.71,0.00020273,2]
[368286455,1751092246938,-231.42337978,0.00020273,2]
[368286456,1751092246947,-460.0,0.00020273,2]
[368286457,1751092246957,-199.28758949,0.00020273,2]
[368286458,1751092246966,-460.0,0.00020273,2]
[368286459,1751092246975,-749.34,0.00020273,2]
[368286460,1751092246984,-460.0,0.00020273,2]
[368286461,1751092246994,-2283.61,0.00020273,2]
[368286462,1751092247004,-460.0,0.00020273,2]
[368286463,1751092247015,-460.0,0.00020273,2]
[368286464,1751092247024,-460.0,0.00020273,2]
[368286465,1751092247033,-1062.61,0.00020273,2]
[368286466,1751092247042,-460.0,0.00020273,2]
[368286467,1751092247051,-460.0,0.00020273,2]
[368286468,1751092247062,-460.0,0.00020273,2]
[368286469,1751092247071,-460.0,0.00020273,2]
[368286470,1751092247080,-460.0,0.00020273,2]
[368286471,1751092247090,-460.0,0.00020273,2]
[368286472,1751092247099,-460.0,0.00020273,2]
[368286473,1751092247108,-503.12,0.00020273,2]
[368286474,1751092247119,-450.50903002,0.00020273,2]
[368286475,1751092247128,-460.0,0.00020273,2]
[368286476,1751092247137,-546.11,0.00020273,2]
[368286477,1751092247147,-460.0,0.00020273,2]
[368286478,1751092247156,-2827.27,0.00020273,2]
[368286479,1751092247166,-460.0,0.00020273,2]
[368286480,1751092247175,-460.0,0.00020273,2]
[368286481,1751092247184,-460.0,0.00020273,2]
[368286482,1751092247194,-2063.9,0.00020273,2]
[368286483,1751092247203,-597.96,0.00020273,2]
[368286484,1751092247213,-1025.68,0.00020273,2]
[368286485,1751092247222,-415.743074,0.00020273,2]
[368286486,1751092247232,-500.0,0.00020273,2]
[368286487,1751092247241,-460.0,0.00020273,2]
[368286490,1751092247251,-460.0,0.00020273,2]
[368286492,1751092247261,-3087.12,0.00020273,2]
[368286493,1751092247272,-758.94,0.00020273,2]
[368286495,1751092247281,-460.0,0.00020273,2]
[368286497,1751092247291,-460.0,0.00020273,2]
[368286499,1751092247300,-460.0,0.00020273,2]
[368286500,1751092247310,-460.0,0.00020273,2]
[368286501,1751092247319,-1845.16,0.00020273,2]
[368286502,1751092247329,-460.0,0.00020273,2]
[368286503,1751092247339,-1876.63,0.00020273,2]
[368286504,1751092247348,-460.0,0.00020273,2]
[368286505,1751092247358,-3961.88,0.00020273,2]
[368286506,1751092247367,-460.0,0.00020273,2]
[368286507,1751092247377,-738.64,0.00020273,2]
[368286508,1751092247387,-1261.08,0.00020273,2]
[368286509,1751092247396,-460.0,0.00020273,2]
[368286510,1751092247406,-460.0,0.00020273,2]
[368286511,1751092247415,-1780.21,0.00020273,2]
[368286512,1751092247425,-460.0,0.00020273,2]
[368286513,1751092247434,-332.91678674,0.00020273,2]
[368286514,1751092247443,-830.04,0.00020273,2]
[368286515,1751092247452,-460.0,0.00020273,2]
[368286516,1751092247461,-493.72,0.00020273,2]
[368286517,1751092247471,-460.0,0.00020273,2]
[368286518,1751092247481,-3913.47,0.00020273,2]
[368286519,1751092247490,-1917.93,0.00020273,2]
[368286520,1751092247500,-460.0,0.00020273,2]
[368286521,1751092247509,-460.0,0.00020273,2]
[368286522,1751092247519,-460.0,0.00020273,2]
[368286523,1751092247528,-460.0,0.00020273,2]
[368286524,1751092247537,-486.94,0.00020273,2]
[368286525,1751092247547,-460.0,0.00020273,2]
[368286526,1751092247557,-228.01781677,0.00020273,2]
[368286527,1751092247566,-1763.75,0.00020273,2]
[368286528,1751092247575,-1417.63,0.00020273,2]
[368286529,1751092247584,-503.40974568,0.00020281,2]
[368286530,1751092247593,-1000.0,0.00020282,2]
[368286531,1751092247603,-160.0,0.00020304,2]
[368286532,1751092247612,-847.18566335,0.00020304,2]
[368286533,1751092247621,-230.28494567,0.00020304,2]
[368286534,1751092247631,-160.0,0.00020304,2]
[368286535,1751092247641,-837.06984471,0.00020304,2]
[368286536,1751092247650,-213.78848551,0.00020304,2]
[368286537,1751092247660,-160.0,0.00020304,2]
[368286538,1751092247669,-160.0,0.00020304,2]
[368286539,1751092247679,-160.0,0.00020304,2]
[368286540,1751092247687,-160.0,0.00020304,2]
[368286541,1751092247696,-214.95397287,0.00020304,2]
[368286542,1751092247706,-12564.78152626,0.00020304,2]
[368286543,1751092247722,-160.0,0.00020304,2]
[368286544,1751092247731,-160.0,0.00020304,2]
[368286545,1751092247740,-160.0,0.00020304,2]
[368286546,1751092247749,-7958.93867809,0.00020383,3]
[368286547,1751092247760,-352.0,0.00020496,2]
[368286548,1751092247773,-747.2,0.00020538,3]
[368286549,1751092247783,-373.6,0.00020538,3]
[368286550,1751092247793,-151.0,0.00020547,2]
[368286551,1751092247803,-460.0,0.00020547,2]
[368286552,1751092247813,-460.0,0.00020547,2]
[368286553,1751092247822,-460.0,0.00020547,2]
[368286554,1751092247831,-223.20541348,0.00020547,2]
[368286555,1751092247842,-544.66,0.00020547,2]
[368286556,1751092247851,-460.0,0.00020547,2]
[368286557,1751092247861,-460.0,0.00020547,2]
[368286558,1751092247871,-460.0,0.00020547,2]
[368286559,1751092247881,-783.34,0.00020547,2]
[368286560,1751092247890,-207.15453225,0.00020547,2]
[368286561,1751092247899,-460.0,0.00020547,2]
[368286562,1751092247908,-460.0,0.00020547,2]
[368286563,1751092247918,-460.0,0.00020547,2]
[368286564,1751092247927,-460.0,0.00020547,2]
[368286565,1751092247936,-460.0,0.00020547,2]
[368286566,1751092247945,-855.13,0.00020547,2]
[368286567,1751092247955,-1621.43,0.00020547,2]
[368286568,1751092247964,-460.0,0.00020547,2]
[368286569,1751092247973,-460.0,0.00020547,2]
[368286570,1751092247983,-963.72,0.00020547,2]
[368286571,1751092247992,-416.02306291,0.00020547,2]
[368286572,1751092248001,-460.0,0.00020547,2]
[368286573,1751092248010,-460.0,0.00020547,2]
[368286574,1751092248022,-460.0,0.00020547,2]
[368286575,1751092248031,-460.0,0.00020547,2]
[368286576,1751092248041,-460.0,0.00020547,2]
[368286577,1751092248050,-460.0,0.00020547,2]
[368286578,1751092248059,-2847.84,0.00020547,2]
[368286579,1751092248068,-460.0,0.00020547,2]
[368286580,1751092248078,-762.68,0.00020547,2]
[368286581,1751092248087,-688.06,0.00020547,2]
[368286582,1751092248096,-637.58,0.00020547,2]
[368286583,1751092248106,-460.0,0.00020547,2]
[368286584,1751092248115,-2645.71,0.00020547,2]
[368286585,1751092248124,-500.0,0.00020547,14]
[368286586,1751092248134,-460.0,0.00020547,2]
[368286587,1751092248144,-460.0,0.00020547,2]
[368286588,1751092248154,-749.34,0.00020547,2]
[368286589,1751092248164,-460.0,0.00020547,2]
[368286590,1751092248174,-2283.61,0.00020547,2]
[368286591,1751092248183,-460.0,0.00020547,2]
[368286592,1751092248192,-601.28832938,0.00020547,2]
[368286593,1751092248201,-460.0,0.00020547,2]
[368286594,1751092248210,-1062.61,0.00020547,2]
[368286595,1751092248219,-460.0,0.00020547,2]
[368286596,1751092248230,-460.0,0.00020547,2]
[368286597,1751092248239,-460.0,0.00020547,2]
[368286598,1751092248248,-460.0,0.00020547,2]
[368286599,1751092248257,-460.0,0.00020547,2]
[368286600,1751092248267,-305.77632878,0.00020547,2]
[368286601,1751092248276,-460.0,0.00020547,2]
[368286602,1751092248286,-503.12,0.00020547,2]
[368286603,1751092248295,-460.0,0.00020547,2]
[368286604,1751092248305,-546.11,0.00020547,2]
[368286605,1751092248315,-460.0,0.00020547,2]
[368286606,1751092248324,-2827.27,0.00020547,2]
[368286607,1751092248333,-460.0,0.00020547,2]
[368286608,1751092248342,-460.0,0.00020547,2]
[368286609,1751092248352,-2063.9,0.00020547,2]
[368286610,1751092248361,-597.96,0.00020547,2]
[368286611,1751092248371,-1025.68,0.00020547,2]
[368286612,1751092248380,-460.0,0.00020547,2]
[368286613,1751092248389,-600.27084496,0.00020547,2]
[368286614,1751092248399,-3087.12,0.00020547,2]
[368286615,1751092248408,-758.94,0.00020547,2]
[368286616,1751092248417,-460.0,0.00020547,2]
[368286617,1751092248427,-460.0,0.00020547,2]
[368286618,1751092248436,-460.0,0.00020547,2]
[368286619,1751092248446,-460.0,0.00020547,2]
[368286620,1751092248455,-1845.16,0.00020547,2]
[368286621,1751092248465,-460.0,0.00020547,2]
[368286622,1751092248475,-1876.63,0.00020547,2]
[368286623,1751092248484,-460.0,0.00020547,2]
[368286624,1751092248493,-3961.88,0.00020547,2]
[368286625,1751092248502,-460.0,0.00020547,2]
[368286626,1751092248511,-738.64,0.00020547,2]
[368286627,1751092248522,-1261.08,0.00020547,2]
[368286628,1751092248531,-460.0,0.00020547,2]
[368286629,1751092248541,-460.0,0.00020547,2]
[368286630,1751092248550,-1780.21,0.00020547,2]
[368286631,1751092248559,-460.0,0.00020547,2]
[368286632,1751092248569,-830.04,0.00020547,2]
[368286633,1751092248578,-584.23005202,0.00020547,2]
[368286634,1751092248587,-493.72,0.00020547,2]
[368286635,1751092248596,-460.0,0.00020547,2]
[368286636,1751092248605,-3913.47,0.00020547,2]
[368286637,1751092248615,-1917.93,0.00020547,2]
[368286638,1751092248624,-460.0,0.00020547,2]
[368286639,1751092248633,-460.0,0.00020547,2]
[368286640,1751092248642,-460.0,0.00020547,2]
[368286641,1751092248652,-460.0,0.00020547,2]
[368286642,1751092248661,-486.94,0.00020547,2]
[368286643,1751092248670,-460.0,0.00020547,2]
[368286644,1751092248680,-1763.75,0.00020547,2]
[368286645,1751092248689,-1417.63,0.00020547,2]
[368286646,1751092248698,-3797.86,0.000206,2]
[368286647,1751092248708,-277.336715,0.00020624,2]
[368286648,1751092248816,-277.336715,0.00020624,2]
[368286649,1751092248846,-164.961058,0.00020624,2]
[368286650,1751092248855,-164.961058,0.00020624,2]
[368286651,1751092248865,-213.78848551,0.00020624,3]
[368286652,1751092248874,-160.0,0.00020624,3]
[368286653,1751092248884,-7958.93867809,0.00020624,3]
[368286654,1751092248893,-12564.78152626,0.00020624,3]
[368286655,1751092248903,-847.18566335,0.00020624,3]
[368286656,1751092248912,-352.0,0.00020625,2]
[368286657,1751092248922,-1597.5425311,0.00020626,2]
[368286658,1751092248931,-178.67757898,0.00020696,2]
[368286659,1751092248941,-212.9,0.00020768,3]
[368286660,1751092248951,-1500.0,0.00020793,2]
[368286661,1751092248960,-1500.0,0.00020815,2]
[368286662,1751092248970,-500.0,0.0002082,2]
[368286663,1751092248979,-500.0,0.0002082,2]
[368286664,1751092248989,-500.0,0.0002082,2]
[368286665,1751092248998,-355.01472192,0.0002082,2]
[368286666,1751092249008,-666.0,0.00020821,2]
[368286667,1751092249017,-503.93739225,0.00020821,2]
[368286668,1751092249027,-160.3588391,0.00020821,2]
[368286669,1751092249036,-500.0,0.00020821,2]
[368286670,1751092249045,-246.59496078,0.00020821,2]
[368286671,1751092249054,-500.0,0.00020821,2]
[368286672,1751092249064,-5000.0,0.00020821,2]
[368286673,1751092249073,-500.0,0.00020821,2]
[368286674,1751092249083,-500.0,0.00020821,2]
[368286675,1751092249092,-500.0,0.00020821,2]
[368286676,1751092249101,-500.0,0.00020821,2]
[368286677,1751092249110,-500.0,0.00020821,2]
[368286678,1751092249120,-25000.0,0.00020821,2]
[368286679,1751092249129,-2001.05393756,0.00020821,2]
[368286680,1751092249138,-9311.42036975,0.00020821,2]
[368286681,1751092249147,-500.0,0.00020821,2]
[368286682,1751092249157,-500.0,0.00020821,2]
[368286683,1751092249166,-500.0,0.00020821,2]
[368286684,1751092249175,-500.0,0.00020821,2]
[368286685,1751092249185,-500.0,0.00020821,2]
[368286686,1751092249194,-500.0,0.00020821,2]
[368286687,1751092249204,-500.0,0.00020821,2]
[368286688,1751092249213,-500.0,0.00020821,2]
[368286689,1751092249222,-500.0,0.00020821,2]
[368286690,1751092249231,-207.4,0.00020821,2]
[368286691,1751092249240,-500.0,0.00020821,2]
[368286692,1751092249250,-500.0,0.00020821,2]
[368286693,1751092249259,-154.31315253,0.00020821,2]
[368286694,1751092249269,-151.0,0.00020821,2]
[368286695,1751092249279,-460.0,0.00020821,2]
[368286696,1751092249289,-460.0,0.00020821,2]
[368286697,1751092249299,-544.66,0.00020821,2]
[368286698,1751092249309,-460.0,0.00020821,2]
[368286699,1751092249318,-460.0,0.00020821,2]
[368286700,1751092249328,-194.20416739,0.00020821,2]
[368286701,1751092249337,-783.34,0.00020821,2]
[368286702,1751092249347,-460.0,0.00020821,2]
[368286703,1751092249356,-454.77441597,0.00020821,2]
[368286704,1751092249365,-460.0,0.00020821,2]
[368286705,1751092249375,-460.0,0.00020821,2]
[368286706,1751092249384,-460.0,0.00020821,2]
[368286707,1751092249393,-151.0,0.00020821,2]
[368286708,1751092249403,-151.0,0.00020821,2]
[368286709,1751092249412,-855.13,0.00020821,2]
[368286710,1751092249421,-1621.43,0.00020821,2]
[368286711,1751092249431,-460.0,0.00020821,2]
[368286712,1751092249440,-460.0,0.00020821,2]
[368286713,1751092249450,-963.72,0.00020821,2]
[368286714,1751092249460,-460.0,0.00020821,2]
[368286715,1751092249469,-460.0,0.00020821,2]
[368286716,1751092249479,-460.0,0.00020821,2]
[368286717,1751092249488,-460.0,0.00020821,2]
[368286718,1751092249498,-151.0,0.00020821,2]
[368286719,1751092249507,-460.0,0.00020821,2]
[368286720,1751092249516,-252.95527406,0.00020821,2]
[368286721,1751092249526,-2847.84,0.00020821,2]
[368286722,1751092249535,-460.0,0.00020821,2]
[368286723,1751092249544,-762.68,0.00020821,2]
[368286724,1751092249554,-688.06,0.00020821,2]
[368286725,1751092249564,-637.58,0.00020821,2]
[368286726,1751092249573,-460.0,0.00020821,2]
[368286727,1751092249582,-2645.71,0.00020821,2]
[368286728,1751092249591,-460.0,0.00020821,2]
[368286729,1751092249601,-460.0,0.00020821,2]
[368286730,1751092249611,-749.34,0.00020821,2]
[368286731,1751092249621,-460.0,0.00020821,2]
[368286732,1751092249631,-151.0,0.00020821,2]
[368286733,1751092249641,-2283.61,0.00020821,2]
[368286734,1751092249651,-151.0,0.00020821,2]
[368286735,1751092249660,-460.0,0.00020821,2]
[368286736,1751092249669,-460.0,0.00020821,2]
[368286737,1751092249679,-1062.61,0.00020821,2]
[368286738,1751092249688,-460.0,0.00020821,2]
[368286739,1751092249698,-460.0,0.00020821,2]
[368286740,1751092249707,-460.0,0.00020821,2]
[368286741,1751092249717,-460.0,0.00020821,2]
[368286742,1751092249730,-460.0,0.00020821,2]
[368286743,1751092249739,-460.0,0.00020821,2]
[368286744,1751092249748,-503.12,0.00020821,2]
[368286745,1751092249757,-460.0,0.00020821,2]
[368286746,1751092249767,-546.11,0.00020821,2]
[368286747,1751092249779,-460.0,0.00020821,2]
[368286748,1751092249788,-2827.27,0.00020821,2]
[368286749,1751092249797,-460.0,0.00020821,2]
[368286750,1751092249806,-460.0,0.00020821,2]
[368286751,1751092249815,-2063.9,0.00020821,2]
[368286752,1751092249824,-597.96,0.00020821,2]
[368286753,1751092249834,-1025.68,0.00020821,2]
[368286754,1751092249844,-216.06820092,0.00020821,2]
[368286755,1751092249853,-3087.12,0.00020821,2]
[368286756,1751092249863,-758.94,0.00020821,2]
[368286757,1751092249872,-460.0,0.00020821,2]
[368286758,1751092249882,-460.0,0.00020821,2]
[368286759,1751092249891,-460.0,0.00020821,2]
[368286760,1751092249900,-460.0,0.00020821,2]
[368286761,1751092249910,-1845.16,0.00020821,2]
[368286762,1751092249919,-263.173189,0.00020821,2]
[368286763,1751092249928,-151.0,0.00020821,2]
[368286764,1751092249937,-460.0,0.00020821,2]
[368286765,1751092249946,-1876.63,0.00020821,2]
[368286766,1751092249955,-263.173189,0.00020821,2]
[368286767,1751092249964,-151.0,0.00020821,2]
[368286768,1751092249974,-151.0,0.00020821,2]
[368286769,1751092249983,-1432.058852,0.00020821,2]